lending/lending_fUSD_20240621
["ID","MTS","AMOUNT","RATE_DAILY","PERIOD"]
[330034769,1718956609431,-510.18990317,0.00041369,31]
[330034770,1718956609455,-201.17549124,0.00041369,31]
[330034771,1718956609479,-500.0,0.00041369,31]
[330034772,1718956609504,-561.35820697,0.00041369,31]
[330034773,1718956609528,-625.09,0.00041369,31]
[330034774,1718956609551,-500.0,0.00041369,31]
[330034775,1718956609576,-332.9419153,0.00041369,31]
[330034776,1718956609604,-200.0,0.00041369,31]
[330034777,1718956609630,-500.0,0.00041369,31]
[330034778,1718956609653,-500.0,0.00041369,31]
[330034779,1718956609676,-500.0,0.00041369,31]
[330034780,1718956609699,-500.0,0.00041369,31]
[330034781,1718956609723,-500.0,0.00041369,31]
[330034782,1718956609745,-500.0,0.00041369,31]
[330034783,1718956609769,-500.0,0.00041369,31]
[330034784,1718956609794,-624.72943978,0.00041369,31]
[330034785,1718956610038,-524.84881457,0.00041369,31]
[330034786,1718956610064,-500.0,0.00041369,31]
[330034787,1718956610087,-500.0,0.00041369,31]
[330034788,1718956610111,-634.10780974,0.00041369,31]
[330034789,1718956610134,-526.07407703,0.00041369,31]
[330034790,1718956610157,-244.12815962,0.00041369,31]
[330034791,1718956610180,-206.40772064,0.00041369,31]
[330034792,1718956610204,-500.0,0.00041369,31]
[330034793,1718956610228,-500.0,0.00041369,31]
[330034794,1718956610252,-500.0,0.00041369,31]
[330034795,1718956610277,-500.0,0.00041369,31]
[330034796,1718956610305,-500.0,0.00041369,31]
[330034797,1718956610330,-292.99819265,0.00041369,31]
[330034798,1718956610356,-500.0,0.00041369,31]
[330034799,1718956610383,-500.0,0.00041369,31]
[330034800,1718956610411,-500.0,0.00041369,31]
[330034801,1718956610440,-502.84,0.00041369,31]
[330034802,1718956610466,-500.0,0.00041369,31]
[330034803,1718956610492,-154.74781971,0.00041369,31]
[330034804,1718956610519,-500.0,0.00041369,31]
[330034805,1718956610544,-522.48623336,0.00041369,31]
[330034806,1718956610571,-500.0,0.00041369,31]
[330034807,1718956610596,-500.0,0.00041369,31]
[330034808,1718956610627,-500.0,0.00041369,31]
[330034809,1718956610653,-593.46640665,0.00041369,31]
[330034810,1718956610680,-866.85,0.00041369,31]
[330034811,1718956610705,-500.0,0.00041369,31]
[330034812,1718956610732,-1085.46,0.00041369,31]
[330034813,1718956610760,-500.0,0.00041369,31]
[330034814,1718956610784,-549.79,0.00041369,31]
[330034815,1718956610809,-500.0,0.00041369,31]
[330034816,1718956610840,-500.0,0.00041369,31]
[330034817,1718956610866,-500.0,0.00041369,31]
[330034818,1718956610894,-500.0,0.00041369,31]
[330034819,1718956610921,-400.839227,0.00041369,31]
[330034820,1718956610946,-500.0,0.00041369,31]
[330034821,1718956610971,-500.0,0.00041369,31]
[330034822,1718956610998,-881.41,0.00041369,31]
[330034823,1718956611024,-500.0,0.00041369,31]
[330034824,1718956611049,-500.0,0.00041369,31]
[330034825,1718956611076,-500.0,0.00041369,31]
[330034826,1718956611106,-580.76,0.00041369,31]
[330034827,1718956611132,-500.0,0.00041369,31]
[330034828,1718956611158,-500.0,0.00041369,31]
[330034829,1718956611185,-500.0,0.00041369,31]
[330034830,1718956611210,-500.0,0.00041369,31]
[330034831,1718956611237,-500.0,0.00041369,31]
[330034832,1718956611265,-500.0,0.00041369,31]
[330034833,1718956611291,-500.0,0.00041369,31]
[330034834,1718956611317,-512.16275565,0.00041369,31]
[330034835,1718956611344,-817.21,0.00041369,31]
[330034836,1718956611370,-867.55,0.00041369,31]
[330034837,1718956611396,-500.0,0.00041369,31]
[330034838,1718956611427,-500.0,0.00041369,31]
[330034839,1718956611463,-500.0,0.00041369,31]
[330034840,1718956611490,-500.0,0.00041369,31]
[330034841,1718956611520,-500.0,0.00041369,31]
[330034842,1718956611548,-507.82415644,0.00041369,31]
[330034843,1718956611576,-500.0,0.00041369,31]
[330034844,1718956611603,-500.0,0.00041369,31]
[330034845,1718956611635,-500.0,0.00041369,31]
[330034846,1718956611667,-500.0,0.00041369,31]
[330034847,1718956611694,-500.0,0.00041369,31]
[330034848,1718956611722,-500.0,0.00041369,31]
[330034849,1718956611751,-500.0,0.00041369,31]
[330034850,1718956611777,-654.22,0.00041369,31]
[330034851,1718956611803,-500.0,0.00041369,31]
[330034852,1718956611834,-899.77,0.00041369,31]
[330034853,1718956611863,-500.0,0.00041369,31]
[330034854,1718956611893,-500.0,0.00041369,31]
[330034855,1718956611923,-500.0,0.00041369,31]
[330034856,1718956611950,-500.0,0.00041369,31]
[330034857,1718956611975,-500.0,0.00041369,31]
[330034858,1718956611999,-500.0,0.00041369,31]
[330034859,1718956612024,-501.10026803,0.00041369,31]
[330034860,1718956612048,-500.0,0.00041369,31]
[330034861,1718956612074,-500.0,0.00041369,31]
[330034862,1718956612099,-784.26,0.00041369,31]
[330034863,1718956612125,-500.0,0.00041369,31]
[330034864,1718956612150,-500.0,0.00041369,31]
[330034865,1718956612175,-500.0,0.00041369,31]
[330034866,1718956612199,-500.0,0.00041369,31]
[330034867,1718956612223,-500.0,0.00041369,31]
[330034868,1718956612247,-500.0,0.00041369,31]
[330034869,1718956612271,-500.0,0.00041369,31]
[330034870,1718956612295,-500.0,0.00041369,31]
[330034871,1718956612320,-553.33,0.00041369,31]
[330034872,1718956612344,-500.0,0.00041369,31]
[330034873,1718956612369,-609.08,0.00041369,31]
[330034874,1718956612393,-595.31247363,0.00041369,31]
[330034875,1718956612418,-500.0,0.00041369,31]
[330034876,1718956612443,-500.0,0.00041369,31]
[330034877,1718956612468,-932.71,0.00041369,31]
[330034878,1718956612494,-513.15,0.00041369,31]
[330034879,1718956612521,-631.13,0.00041369,31]
[330034880,1718956612546,-500.0,0.00041369,31]
[330034881,1718956612573,-516.29,0.00041369,31]
[330034882,1718956612598,-500.0,0.00041369,31]
[330034883,1718956612624,-542.86494921,0.00041369,31]
[330034884,1718956612649,-500.0,0.00041369,31]
[330034885,1718956612672,-500.0,0.00041369,31]
[330034886,1718956612696,-999.25,0.00041369,31]
[330034887,1718956612726,-500.0,0.00041369,31]
[330034888,1718956612750,-177.39364306,0.00041369,31]
[330034889,1718956613111,-500.0,0.00041369,31]
[330034890,1718956613135,-535.02730176,0.00041369,31]
[330034891,1718956613158,-500.0,0.00041369,31]
[330034892,1718956613182,-500.0,0.00041369,31]
[330034893,1718956613205,-660.13,0.00041369,31]
[330034894,1718956613229,-827.46,0.00041369,31]
[330034895,1718956613252,-500.0,0.00041369,31]
[330034896,1718956613277,-500.0,0.00041369,31]
[330034897,1718956613300,-500.0,0.00041369,31]
[330034898,1718956613324,-500.0,0.00041369,31]
[330034899,1718956613349,-500.0,0.00041369,31]
[330034900,1718956613378,-510.90142704,0.00041369,31]
[330034901,1718956613403,-850.56,0.00041369,31]
[330034902,1718956613427,-625.0,0.00041369,31]
[330034903,1718956613451,-500.22,0.00041369,31]
[330034904,1718956613475,-579.08047893,0.00041369,30]
[330034905,1718956613498,-500.0,0.00041369,31]
[330034906,1718956613521,-500.0,0.00041369,31]
[330034907,1718956613545,-500.0,0.00041369,31]
[330034908,1718956613568,-500.0,0.00041369,31]
[330034909,1718956613592,-151.93478435,0.00041369,31]
[330034910,1718956613615,-500.0,0.00041369,31]
[330034911,1718956613638,-500.0,0.00041369,31]
[330034912,1718956613661,-500.0,0.00041369,31]
[330034913,1718956613684,-349.92252378,0.00041369,31]
[330034914,1718956613708,-500.0,0.00041369,31]
[330034915,1718956613732,-536.80297454,0.00041369,31]
[330034916,1718956613757,-1258.76,0.00041369,31]
[330034917,1718956613781,-537.81424868,0.00041369,31]
[330034918,1718956613806,-500.0,0.00041369,31]
[330034919,1718956613833,-500.0,0.00041369,31]
[330034920,1718956613860,-500.0,0.00041369,31]
[330034921,1718956613884,-500.0,0.00041369,31]
[330034922,1718956613910,-500.0,0.00041369,31]
[330034923,1718956613935,-1056.3,0.00041369,31]
[330034924,1718956613958,-547.66,0.00041369,31]
[330034925,1718956613982,-500.0,0.00041369,31]
[330034926,1718956614006,-500.0,0.00041369,31]
[330034927,1718956614032,-619.91,0.00041369,31]
[330034928,1718956614057,-507.18,0.00041369,31]
[330034929,1718956614082,-500.0,0.00041369,31]
[330034930,1718956614109,-500.0,0.00041369,31]
[330034931,1718956614136,-500.0,0.00041369,31]
[330034932,1718956614161,-500.0,0.00041369,31]
[330034933,1718956614187,-500.0,0.00041369,31]
[330034934,1718956614213,-555.31846216,0.00041369,31]
[330034935,1718956614239,-527.3102089,0.00041369,31]
[330034936,1718956614264,-500.0,0.00041369,31]
[330034937,1718956614291,-647.69,0.00041369,31]
[330034938,1718956614318,-500.0,0.00041369,31]
[330034939,1718956614343,-500.0,0.00041369,31]
[330034940,1718956614370,-500.0,0.00041369,31]
[330034941,1718956614396,-500.0,0.00041369,31]
[330034942,1718956614422,-601.39,0.00041369,31]
[330034943,1718956614447,-500.0,0.00041369,31]
[330034944,1718956614472,-500.0,0.00041369,31]
[330034945,1718956614496,-500.0,0.00041369,31]
[330034946,1718956614523,-500.0,0.00041369,31]
[330034947,1718956614548,-500.0,0.00041369,31]
[330034948,1718956614574,-500.0,0.00041369,31]
[330034949,1718956614600,-811.87,0.00041369,31]
[330034950,1718956614630,-500.0,0.00041369,31]
[330034951,1718956614657,-500.0,0.00041369,31]
[330034952,1718956614683,-825.35,0.00041369,31]
[330034953,1718956614708,-500.0,0.00041369,31]
[330034954,1718956614734,-500.0,0.00041369,31]
[330034955,1718956614760,-500.0,0.00041369,31]
[330034956,1718956614784,-500.0,0.00041369,31]
[330034957,1718956614809,-500.0,0.00041369,31]
[330034958,1718956614839,-500.0,0.00041369,31]
[330034959,1718956614867,-500.0,0.00041369,31]
[330034960,1718956614894,-500.0,0.00041369,31]
[330034961,1718956614921,-500.0,0.00041369,31]
[330034962,1718956614946,-500.0,0.00041369,31]
[330034963,1718956614971,-500.0,0.00041369,31]
[330034964,1718956614996,-500.0,0.00041369,31]
[330034965,1718956615022,-776.06,0.00041369,31]
[330034966,1718956615046,-500.0,0.00041369,31]
[330034967,1718956615071,-500.0,0.00041369,31]
[330034968,1718956615098,-1138.65,0.00041369,31]
[330034969,1718956615129,-500.0,0.00041369,31]
[330034970,1718956615155,-500.0,0.00041369,31]
[330034971,1718956615180,-507.68635269,0.00041369,31]
[330034972,1718956615204,-547.5,0.00041369,31]
[330034973,1718956615229,-500.0,0.00041369,31]
[330034974,1718956615256,-500.0,0.00041369,31]
[330034975,1718956615284,-500.0,0.00041369,31]
[330034976,1718956615310,-626.21,0.00041369,31]
[330034977,1718956615337,-1056.09,0.00041369,31]
[330034978,1718956615366,-500.0,0.00041369,31]
[330034979,1718956615392,-500.0,0.00041369,31]
[330034980,1718956615417,-500.0,0.00041369,31]
[330034981,1718956615444,-500.0,0.00041369,31]
[330034982,1718956615469,-500.0,0.00041369,31]
[330034983,1718956615496,-500.0,0.00041369,31]
[330034984,1718956615523,-546.9,0.00041369,31]
[330034985,1718956615550,-513.71329564,0.00041369,31]
[330034986,1718956615576,-500.0,0.00041369,31]
[330034987,1718956615600,-500.0,0.00041369,31]
[330034988,1718956615627,-500.0,0.00041369,31]
[330034989,1718956615651,-500.0,0.00041369,31]
[330034990,1718956615677,-612.03,0.00041369,31]
[330034991,1718956615702,-521.39,0.00041369,31]
[330034992,1718956615903,-500.0,0.00041369,31]
[330034993,1718956615958,-500.0,0.00041369,31]
[330034994,1718956615982,-500.0,0.00041369,31]
[330034995,1718956616007,-500.0,0.00041369,31]
[330034996,1718956616034,-500.0,0.00041369,31]
[330034997,1718956616060,-500.0,0.00041369,31]
[330034998,1718956616083,-500.0,0.00041369,31]
[330034999,1718956616108,-314.4434281,0.00041369,31]
[330035000,1718956616132,-500.0,0.00041369,31]
[330035001,1718956616156,-500.0,0.00041369,31]
[330035002,1718956616181,-500.0,0.00041369,31]
[330035003,1718956616206,-500.0,0.00041369,31]
[330035004,1718956616230,-500.0,0.00041369,31]
[330035005,1718956616256,-727.93,0.00041369,31]
[330035006,1718956616280,-500.0,0.00041369,31]
[330035007,1718956616304,-500.0,0.00041369,31]
[330035008,1718956616327,-542.21,0.00041369,31]
[330035009,1718956616350,-500.0,0.00041369,31]
[330035010,1718956616375,-512.17704764,0.00041369,31]
[330035011,1718956616400,-500.0,0.00041369,31]
[330035012,1718956616426,-620.71,0.00041369,31]
[330035013,1718956616451,-193.33892142,0.00041369,31]
[330035014,1718956616476,-1142.19,0.00041369,31]
[330035015,1718956616499,-508.42982343,0.00041369,31]
[330035016,1718956616523,-500.0,0.00041369,31]
[330035017,1718956616548,-500.0,0.00041369,31]
[330035018,1718956616572,-500.0,0.00041369,31]
[330035019,1718956616596,-500.0,0.00041369,31]
[330035020,1718956616623,-500.0,0.00041369,31]
[330035021,1718956616648,-611.44,0.00041369,31]
[330035022,1718956616673,-683.52,0.00041369,31]
[330035023,1718956616696,-500.0,0.00041369,31]
[330035024,1718956616720,-821.65,0.00041369,31]
[330035025,1718956616744,-627.34,0.00041369,31]
[330035026,1718956616769,-587.05,0.00041369,31]
[330035027,1718956616793,-522.65240823,0.00041369,31]
[330035028,1718956616816,-500.0,0.00041369,31]
[330035029,1718956616844,-500.0,0.00041369,31]
[330035030,1718956616874,-500.0,0.00041369,31]
[330035031,1718956616900,-625.5,0.00041369,31]
[330035032,1718956616925,-500.0,0.00041369,31]
[330035033,1718956616950,-500.0,0.00041369,31]
[330035034,1718956616975,-500.0,0.00041369,31]
[330035035,1718956616998,-500.0,0.00041369,31]
[330035036,1718956617022,-500.0,0.00041369,31]
[330035037,1718956617046,-500.0,0.00041369,31]
[330035038,1718956617069,-500.0,0.00041369,31]
[330035039,1718956617092,-500.0,0.00041369,31]
[330035040,1718956617115,-500.0,0.00041369,31]
[330035041,1718956617139,-531.12,0.00041369,31]
[330035042,1718956617164,-500.0,0.00041369,31]
[330035043,1718956617190,-500.0,0.00041369,31]
[330035044,1718956617216,-500.0,0.00041369,31]
[330035045,1718956617242,-500.0,0.00041369,31]
[330035046,1718956617269,-500.0,0.00041369,31]
[330035047,1718956617296,-1146.89,0.00041369,31]
[330035048,1718956617322,-500.0,0.00041369,31]
[330035049,1718956617348,-500.0,0.00041369,31]
[330035050,1718956617375,-500.0,0.00041369,31]
[330035051,1718956617399,-500.0,0.00041369,31]
[330035052,1718956617427,-508.11771897,0.00041369,31]
[330035053,1718956617454,-500.0,0.00041369,31]
[330035054,1718956617479,-500.0,0.00041369,31]
[330035055,1718956617506,-500.0,0.00041369,31]
[330035056,1718956617532,-500.0,0.00041369,31]
[330035057,1718956617557,-500.0,0.00041369,31]
[330035058,1718956617582,-1059.37,0.00041369,31]
[330035059,1718956617610,-699.11,0.00041369,31]
[330035060,1718956617636,-512.42145239,0.00041369,31]
[330035061,1718956617668,-500.0,0.00041369,31]
[330035062,1718956617695,-500.0,0.00041369,31]
[330035063,1718956617721,-811.24,0.00041369,31]
[330035064,1718956617747,-689.89,0.00041369,31]
[330035065,1718956617774,-500.0,0.00041369,31]
[330035066,1718956617799,-500.0,0.00041369,31]
[330035067,1718956617829,-946.4,0.00041369,31]
[330035068,1718956617855,-513.70722319,0.00041369,31]
[330035069,1718956617883,-502.76,0.00041369,31]
[330035070,1718956617909,-500.0,0.00041369,31]
[330035071,1718956617935,-500.0,0.00041369,31]
[330035072,1718956617961,-500.0,0.00041369,31]
[330035073,1718956617986,-599.76453052,0.00041369,31]
[330035074,1718956618012,-554.1,0.00041369,31]
[330035075,1718956618035,-709.95,0.00041369,31]
[330035076,1718956618059,-500.0,0.00041369,31]
[330035077,1718956618083,-1217.96,0.00041369,31]
[330035078,1718956618106,-500.0,0.00041369,31]
[330035079,1718956618129,-500.0,0.00041369,31]
[330035080,1718956618152,-500.0,0.00041369,31]
[330035081,1718956618175,-500.0,0.00041369,31]
[330035082,1718956618198,-500.0,0.00041369,31]
[330035083,1718956618221,-2621.89,0.00041369,31]
[330035084,1718956618244,-500.0,0.00041369,31]
[330035085,1718956618267,-500.0,0.00041369,31]
[330035086,1718956618289,-500.0,0.00041369,31]
[330035087,1718956618311,-500.0,0.00041369,31]
[330035088,1718956618334,-500.0,0.00041369,31]
[330035089,1718956618359,-500.0,0.00041369,31]
[330035090,1718956618382,-500.0,0.00041369,31]
[330035091,1718956618406,-500.0,0.00041369,31]
[330035092,1718956618429,-500.0,0.00041369,31]
[330035093,1718956618454,-500.0,0.00041369,31]
[330035094,1718956618478,-500.0,0.00041369,31]
[330035095,1718956618502,-500.0,0.00041369,31]
[330035096,1718956618739,-500.0,0.00041369,31]
[330035097,1718956618764,-500.0,0.00041369,31]
[330035098,1718956618788,-500.0,0.00041369,31]
[330035099,1718956618812,-500.0,0.00041369,31]
[330035100,1718956618839,-500.0,0.00041369,31]
[330035101,1718956618862,-619.67,0.00041369,31]
[330035102,1718956618888,-500.0,0.00041369,31]
[330035103,1718956618916,-500.0,0.00041369,31]
[330035104,1718956618940,-868.95,0.00041369,31]
[330035105,1718956618964,-564.1,0.00041369,31]
[330035106,1718956618988,-544.92891396,0.00041369,31]
[330035107,1718956619012,-500.0,0.00041369,31]
[330035108,1718956619036,-887.61,0.00041369,31]
[330035109,1718956619059,-500.0,0.00041369,31]
[330035110,1718956619082,-500.0,0.00041369,31]
[330035111,1718956619106,-500.0,0.00041369,31]
[330035112,1718956619130,-500.0,0.00041369,31]
[330035113,1718956619153,-500.0,0.00041369,31]
[330035114,1718956619176,-500.0,0.00041369,31]
[330035115,1718956619199,-500.0,0.00041369,31]
[330035116,1718956619225,-500.0,0.00041369,31]
[330035117,1718956619248,-500.0,0.00041369,31]
[330035118,1718956619272,-500.0,0.00041369,31]
[330035119,1718956619296,-500.0,0.00041369,31]
[330035120,1718956619318,-500.0,0.00041369,31]
[330035121,1718956619341,-500.0,0.00041369,31]
[330035122,1718956619365,-500.0,0.00041369,31]
[330035123,1718956619388,-500.0,0.00041369,31]
[330035124,1718956619412,-500.0,0.00041369,31]
[330035125,1718956619437,-627.84,0.00041369,31]
[330035126,1718956619462,-683.29,0.00041369,31]
[330035127,1718956619487,-500.0,0.00041369,31]
[330035128,1718956619512,-500.0,0.00041369,31]
[330035129,1718956619536,-500.0,0.00041369,31]
[330035130,1718956619559,-500.0,0.00041369,31]
[330035131,1718956619584,-500.0,0.00041369,31]
[330035132,1718956619610,-500.0,0.00041369,31]
[330035133,1718956619636,-511.82,0.00041369,31]
[330035134,1718956619660,-1556.81,0.00041369,31]
[330035135,1718956619683,-500.0,0.00041369,31]
[330035136,1718956619706,-500.0,0.00041369,31]
[330035137,1718956619730,-500.0,0.00041369,31]
[330035138,1718956619754,-867.89,0.00041369,31]
[330035139,1718956619777,-506.27,0.00041369,31]
[330035140,1718956619801,-500.0,0.00041369,31]
[330035141,1718956619828,-500.0,0.00041369,31]
[330035142,1718956619851,-500.0,0.00041369,31]
[330035143,1718956619876,-500.0,0.00041369,31]
[330035144,1718956619903,-500.0,0.00041369,31]
[330035145,1718956619930,-854.92,0.00041369,31]
[330035146,1718956619956,-500.0,0.00041369,31]
[330035147,1718956619979,-799.68,0.00041369,31]
[330035148,1718956620002,-500.0,0.00041369,31]
[330035149,1718956620026,-500.0,0.00041369,31]
[330035150,1718956620049,-500.0,0.00041369,31]
[330035151,1718956620072,-500.0,0.00041369,31]
[330035152,1718956620095,-500.0,0.00041369,31]
[330035153,1718956620119,-500.0,0.00041369,31]
[330035154,1718956620144,-500.0,0.00041369,31]
[330035155,1718956620168,-500.0,0.00041369,31]
[330035156,1718956620194,-685.69,0.00041369,31]
[330035157,1718956620219,-500.0,0.00041369,31]
[330035158,1718956620244,-586.31,0.00041369,31]
[330035159,1718956620268,-500.0,0.00041369,31]
[330035160,1718956620293,-2515.54,0.00041369,31]
[330035161,1718956620318,-500.0,0.00041369,31]
[330035162,1718956620344,-794.68,0.00041369,31]
[330035163,1718956620368,-748.3,0.00041369,31]
[330035164,1718956620392,-500.0,0.00041369,31]
[330035165,1718956620417,-500.0,0.00041369,31]
[330035166,1718956620442,-500.0,0.00041369,31]
[330035167,1718956620468,-2027.12,0.00041369,31]
[330035168,1718956620493,-505.5254376,0.00041369,31]
[330035169,1718956620518,-500.0,0.00041369,31]
[330035170,1718956620543,-500.0,0.00041369,31]
[330035171,1718956620570,-532.7,0.00041369,31]
[330035172,1718956620594,-725.95,0.00041369,31]
[330035173,1718956620619,-500.0,0.00041369,31]
[330035174,1718956620642,-617.01,0.00041369,31]
[330035175,1718956620670,-500.0,0.00041369,31]
[330035176,1718956620695,-500.0,0.00041369,31]
[330035177,1718956620720,-500.0,0.00041369,31]
[330035178,1718956620744,-500.0,0.00041369,31]
[330035179,1718956620768,-500.0,0.00041369,31]
[330035180,1718956620792,-503.44724033,0.00041369,31]
[330035181,1718956620818,-1306.27,0.00041369,31]
[330035182,1718956620850,-500.0,0.00041369,31]
[330035183,1718956620875,-500.0,0.00041369,30]
[330035184,1718956620904,-820.21,0.00041369,31]
[330035185,1718956620932,-1387.47,0.00041369,31]
[330035186,1718956620958,-937.52,0.00041369,31]
[330035187,1718956620983,-719.64,0.00041369,31]
[330035188,1718956621006,-506.86,0.00041369,31]
[330035189,1718956621030,-500.0,0.00041369,31]
[330035190,1718956621053,-500.0,0.00041369,31]
[330035191,1718956621077,-500.0,0.00041369,32]
[330035192,1718956621101,-500.0,0.00041369,31]
[330035193,1718956621126,-1861.61,0.00041369,31]
[330035194,1718956621150,-500.0,0.00041369,31]
[330035195,1718956621174,-839.9,0.00041369,31]
[330035196,1718956621198,-1385.69,0.00041369,31]
[330035197,1718956621223,-500.0,0.00041369,31]
[330035198,1718956621247,-1103.6,0.00041369,31]
[330035199,1718956621272,-1279.92,0.00041369,31]
[330035200,1718956621500,-500.0,0.00041369,31]
[330035201,1718956621525,-500.0,0.00041369,31]
[330035202,1718956621549,-500.0,0.00041369,31]
[330035203,1718956621571,-500.0,0.00041369,31]
[330035204,1718956621594,-500.0,0.00041369,31]
[330035205,1718956621619,-500.0,0.00041369,31]
[330035206,1718956621642,-500.0,0.00041369,31]
[330035207,1718956621665,-500.0,0.00041369,31]
[330035208,1718956621688,-530.78,0.00041369,31]
[330035209,1718956621712,-500.0,0.00041369,31]
[330035210,1718956621735,-604.54,0.00041369,31]
[330035211,1718956621758,-500.0,0.00041369,31]
[330035212,1718956621782,-697.14,0.00041369,31]
[330035213,1718956621806,-500.0,0.00041369,31]
[330035214,1718956621835,-559.39,0.00041369,31]
[330035215,1718956621864,-500.0,0.00041369,31]
[330035216,1718956621888,-500.0,0.00041369,31]
[330035217,1718956621914,-510.91941095,0.00041369,31]
[330035218,1718956621938,-500.0,0.00041369,31]
[330035219,1718956621963,-2074.77,0.00041369,31]
[330035220,1718956621986,-500.0,0.00041369,31]
[330035221,1718956622010,-500.0,0.00041369,31]
[330035222,1718956622036,-841.77,0.00041369,31]
[330035223,1718956622059,-500.0,0.00041369,31]
[330035224,1718956622083,-500.0,0.00041369,31]
[330035225,1718956622108,-500.0,0.00041369,31]
[330035226,1718956622135,-500.0,0.00041369,31]
[330035227,1718956622159,-1249.83,0.00041369,31]
[330035228,1718956622184,-427.60763739,0.00041369,31]
[330035229,1718956622210,-520.78,0.00041369,31]
[330035230,1718956622235,-500.0,0.00041369,31]
[330035231,1718956622261,-573.45199314,0.00041369,31]
[330035232,1718956622288,-502.4029408,0.00041369,31]
[330035233,1718956622315,-645.63534596,0.00041369,31]
[330035234,1718956622342,-525.07,0.00041369,31]
[330035235,1718956622369,-1280.89,0.00041369,31]
[330035236,1718956622396,-500.0,0.00041369,31]
[330035237,1718956622421,-500.0,0.00041369,31]
[330035238,1718956622446,-500.0,0.00041369,31]
[330035239,1718956622471,-500.0,0.00041369,31]
[330035240,1718956622496,-573.2024051,0.00041369,31]
[330035241,1718956622520,-500.0,0.00041369,31]
[330035242,1718956622543,-500.0,0.00041369,31]
[330035243,1718956622568,-500.0,0.00041369,31]
[330035244,1718956622593,-500.0,0.00041369,31]
[330035245,1718956622619,-500.0,0.00041369,31]
[330035246,1718956622644,-816.14,0.00041369,31]
[330035247,1718956622669,-603.15737826,0.00041369,31]
[330035248,1718956622694,-500.0,0.00041369,31]
[330035249,1718956622720,-500.0,0.00041369,31]
[330035250,1718956622748,-500.0,0.00041369,31]
[330035251,1718956622775,-520.36,0.00041369,31]
[330035252,1718956622801,-905.36,0.00041369,31]
[330035253,1718956622832,-500.0,0.00041369,31]
[330035254,1718956622874,-500.0,0.00041369,31]
[330035255,1718956622904,-577.24,0.00041369,31]
[330035256,1718956622931,-500.0,0.00041369,31]
[330035257,1718956622956,-500.0,0.00041369,31]
[330035258,1718956622980,-500.0,0.00041369,31]
[330035259,1718956623007,-500.0,0.00041369,31]
[330035260,1718956623033,-1103.23,0.00041369,31]
[330035261,1718956623058,-500.0,0.00041369,31]
[330035262,1718956623082,-869.8,0.00041369,31]
[330035263,1718956623106,-500.0,0.00041369,31]
[330035264,1718956623137,-500.0,0.00041369,31]
[330035265,1718956623160,-500.0,0.00041369,31]
[330035266,1718956623184,-510.04075716,0.00041369,31]
[330035267,1718956623210,-500.0,0.00041369,31]
[330035268,1718956623235,-500.0,0.00041369,31]